bitfinex-derivatives/quotes_BTCF0:USTF0_20250827
["timestamp","ask_amount","ask_price","bid_price","bid_amount"]
[1756284985530,1.0807025,110770.0,110760.0,0.2537545]
[1756284985728,1.79450512,110770.0,110760.0,0.12961]
[1756284985933,2.04450512,110770.0,110760.0,0.02419]
[1756284986236,0.2491107,110760.0,110750.0,0.62717888]
[1756284986436,0.6099107,110760.0,110750.0,0.16348]
[1756284986632,0.6099107,110760.0,110750.0,0.02419]
[1756284987339,0.6099107,110760.0,110750.0,0.05399]
[1756284988036,0.6099107,110760.0,110750.0,0.02419]
[1756284988237,0.2491188,110750.0,110740.0,0.12961]
[1756284988543,1.4402388,110750.0,110740.0,0.51648262]
[1756284988841,1.4402388,110750.0,110740.0,0.60677962]
[1756284989238,1.4901388,110750.0,110740.0,0.60677962]
[1756284990044,1.4901788,110750.0,110740.0,0.60677962]
[1756284991040,0.20873,110750.0,110740.0,0.60677962]
[1756284991239,1.03909,110750.0,110740.0,0.96757962]
[1756284991649,1.1293788,110750.0,110740.0,0.96757962]
[1756284992039,1.1293788,110750.0,110740.0,0.614577]
[1756284992232,1.1293788,110750.0,110740.0,0.96757962]
[1756284992437,1.1293788,110750.0,110740.0,0.60677962]
[1756284992839,0.2990188,110750.0,110740.0,0.60677962]
[1756284996935,0.0499,110750.0,110740.0,1.21757962]
[1756284997947,0.0499,110750.0,110740.0,2.04789962]
[1756285000850,0.1722588,110750.0,110740.0,2.04789962]
[1756285001150,0.2338088,110750.0,110740.0,2.04785962]
[1756285002142,0.2338088,110750.0,110740.0,1.694857]
[1756285002343,0.2338088,110750.0,110740.0,2.04785962]
[1756285003350,0.1722588,110750.0,110740.0,2.04785962]
[1756285003551,0.0499,110750.0,110740.0,2.04785962]
[1756285006549,0.4510725,110770.0,110760.0,0.0902806]
[1756285006550,0.3608,110770.0,110760.0,0.0902806]
[1756285006754,0.04408,110770.0,110760.0,1.31867584]
[1756285006953,0.04408,110770.0,110760.0,2.14887584]
[1756285007249,0.72202043,110780.0,110770.0,0.2518624]
[1756285007454,0.72202043,110780.0,110770.0,0.60486502]
[1756285007753,0.36122043,110780.0,110770.0,0.60486502]
[1756285007955,0.23888023,110780.0,110770.0,0.60486502]
[1756285008255,0.27095023,110780.0,110770.0,0.60486502]
[1756285008454,0.24343023,110780.0,110770.0,0.60486502]
[1756285009455,0.11463023,110780.0,110770.0,0.60486502]
[1756285010053,0.11463023,110780.0,110770.0,0.96566502]
[1756285013853,0.11463023,110780.0,110770.0,1.79574502]
[1756285014352,0.24897443,110780.0,110770.0,1.79570502]
[1756285014559,0.36121443,110780.0,110770.0,0.96566502]
[1756285014753,0.36121443,110780.0,110770.0,1.79570502]
[1756285015062,0.33369443,110780.0,110770.0,1.79570502]
[1756285015358,0.20489443,110780.0,110770.0,1.79570502]
[1756285015560,0.11463023,110780.0,110770.0,1.79570502]
[1756285016559,0.20489453,110780.0,110770.0,1.79570502]
[1756285017560,0.11463023,110780.0,110770.0,1.79570502]
[1756285018663,0.11463023,110780.0,110770.0,1.79770502]
[1756285019564,0.36121453,110780.0,110770.0,1.79758502]
[1756285020256,0.72201453,110780.0,110770.0,1.0500224]
[1756285020456,0.72201453,110780.0,110770.0,0.57314502]
[1756285020658,0.97201453,110780.0,110770.0,0.51559262]
[1756285020852,0.97201453,110780.0,110770.0,0.51459262]
[1756285021664,0.97201453,110780.0,110770.0,0.60486512]
[1756285022564,1.31201453,110780.0,110770.0,0.02341]
[1756285022867,0.2465925,110770.0,110760.0,0.60486672]
[1756285023060,0.2465925,110770.0,110760.0,0.96566672]
[1756285024066,0.2964925,110770.0,110760.0,0.96566672]
[1756285026663,0.20622,110770.0,110760.0,0.96566672]
[1756285026968,0.0499,110770.0,110760.0,1.31866934]
[1756285028270,0.0499,110770.0,110760.0,1.31966934]
[1756285028569,0.1401723,110770.0,110760.0,1.31966934]
[1756285028966,0.0499,110770.0,110760.0,1.31966934]
[1756285030167,0.0499,110770.0,110760.0,1.32066934]
[1756285030968,0.0499,110770.0,110760.0,1.57066934]
[1756285032269,0.1401724,110770.0,110760.0,1.57066934]
[1756285032664,0.1401724,110770.0,110760.0,2.40038934]
[1756285032968,0.1401724,110770.0,110760.0,2.04738672]
[1756285033270,0.1401724,110770.0,110760.0,2.40038934]
[1756285033872,0.1401724,110770.0,110760.0,1.57066934]
[1756285034072,0.0499,110770.0,110760.0,2.40038934]
[1756285034271,0.08307,110770.0,110760.0,1.57066934]
[1756285034469,0.0499,110770.0,110760.0,2.40038934]
[1756285039574,0.0499,110770.0,110760.0,2.40138934]
[1756285039771,0.0499,110770.0,110760.0,2.40238934]
[1756285041174,0.11463023,110780.0,110770.0,0.1752424]
[1756285041376,0.11463023,110780.0,110770.0,0.92368502]
[1756285042882,0.11463023,110780.0,110770.0,0.92468502]
[1756285043584,0.11463023,110780.0,110770.0,0.92668502]
[1756285044171,0.11463023,110780.0,110770.0,0.92768502]
[1756285045080,0.11463023,110780.0,110770.0,1.17768502]
[1756285045278,0.0902481,110800.0,110790.0,0.0902561]
[1756285045484,0.67031,110810.0,110800.0,0.10754]
[1756285045787,0.67031,110810.0,110800.0,0.46054262]
[1756285046685,0.2497567,110810.0,110800.0,0.55079052]
[1756285048085,0.2497567,110810.0,110800.0,0.1977879]
[1756285048280,0.2497567,110810.0,110800.0,0.55079052]
[1756285048485,0.27764964,110810.0,110800.0,0.55079052]
[1756285049587,0.35062492,110810.0,110800.0,0.55079052]
[1756285050388,0.35062492,110810.0,110800.0,0.1977879]
[1756285050588,0.35062492,110810.0,110800.0,0.55079052]
[1756285051285,1.09955492,110810.0,110800.0,0.55079052]
[1756285051482,1.13372492,110810.0,110800.0,0.55079052]
[1756285051686,1.18002492,110810.0,110800.0,0.55079052]
[1756285058097,1.54082492,110810.0,110800.0,0.42590262]
[1756285058299,0.2456579,110800.0,110790.0,0.2157689]
[1756285058596,0.2456579,110800.0,110790.0,0.0201687]
[1756285058597,0.6064579,110800.0,110790.0,0.0201687]
[1756285058785,0.6064579,110800.0,110790.0,0.1104248]
[1756285058986,1.20946052,110800.0,110790.0,0.0201687]
[1756285059389,0.8564579,110800.0,110790.0,0.0201687]
[1756285059598,0.9063579,110800.0,110790.0,0.0201687]
[1756285060296,0.5455579,110800.0,110790.0,0.44422132]
[1756285060501,0.2633979,110800.0,110790.0,0.56877742]
[1756285060791,0.12706,110800.0,110790.0,1.17957742]
[1756285060998,0.12706,110800.0,110790.0,2.00933742]
[1756285061198,0.12706,110800.0,110790.0,1.17957742]
[1756285061395,0.15996,110800.0,110790.0,1.17957742]
[1756285061699,0.2772479,110800.0,110790.0,1.17957742]
[1756285061901,0.2955579,110800.0,110790.0,0.56877742]
[1756285062796,0.2955579,110800.0,110790.0,0.2157748]
[1756285062996,0.2955579,110800.0,110790.0,0.56877742]
[1756285064799,0.14185407,110800.0,110790.0,0.62386742]
[1756285065190,0.090248,110800.0,110790.0,0.98466742]
[1756285065395,1.08534352,110810.0,110800.0,0.250688]
[1756285065593,0.9844753,110810.0,110800.0,0.60369062]
[1756285066704,1.0765753,110810.0,110800.0,0.60369062]
[1756285067004,1.0768553,110810.0,110800.0,0.60369062]
[1756285067196,1.10386202,110810.0,110800.0,0.60369062]
[1756285067600,1.17617317,110810.0,110800.0,0.60369062]
[1756285068802,0.34497317,110810.0,110800.0,0.60369062]
[1756285069109,1.17597317,110810.0,110800.0,0.60369062]
[1756285069500,1.17561317,110810.0,110800.0,0.60369062]
[1756285071608,1.14857317,110810.0,110800.0,0.60369062]
[1756285072004,1.17561317,110810.0,110800.0,0.60369062]
[1756285072605,1.17637317,110810.0,110800.0,0.250688]
[1756285072907,1.17637317,110810.0,110800.0,0.60369062]
[1756285075612,0.34497317,110810.0,110800.0,0.60369062]
[1756285075907,1.14869317,110810.0,110800.0,0.60369062]
[1756285076410,1.17573317,110810.0,110800.0,0.60369062]
[1756285080214,1.17573317,110810.0,110800.0,0.250688]
[1756285080516,1.53653317,110810.0,110800.0,0.51430062]
[1756285081008,1.53653317,110810.0,110800.0,0.60369062]
[1756285081210,1.53653317,110810.0,110800.0,0.53637062]
[1756285081410,1.53653317,110810.0,110800.0,0.47217062]
[1756285082219,1.53653317,110810.0,110800.0,0.51430062]
[1756285082617,1.53653317,110810.0,110800.0,0.119168]
[1756285082916,1.53653317,110810.0,110800.0,0.47217062]
[1756285083115,1.54293317,110810.0,110800.0,0.49452062]
[1756285084920,1.54293317,110810.0,110800.0,0.141518]
[1756285085219,1.54293317,110810.0,110800.0,0.49452062]
[1756285085421,1.54293317,110810.0,110800.0,0.57067062]
[1756285085617,1.54293317,110810.0,110800.0,0.60369062]
[1756285086521,1.88293317,110810.0,110800.0,0.60369062]
[1756285086718,1.54293317,110810.0,110800.0,0.60369062]
[1756285088721,1.85293317,110810.0,110800.0,0.40427262]
[1756285088913,1.54293317,110810.0,110800.0,0.40427262]
[1756285089318,1.54293317,110810.0,110800.0,0.51242262]
[1756285090220,1.54293317,110810.0,110800.0,0.60267062]
[1756285092818,0.71217317,110810.0,110800.0,0.60267062]
[1756285093223,1.54309317,110810.0,110800.0,0.60267062]
[1756285093425,1.54309317,110810.0,110800.0,0.51242262]
[1756285093723,1.86309317,110810.0,110800.0,0.51242262]
[1756285093912,2.49714109,110810.0,110790.0,0.0523787]
[1756285094113,0.6068179,110800.0,110790.0,0.02858]
[1756285094424,0.6068179,110800.0,110790.0,0.40332262]
[1756285095622,0.6567179,110800.0,110790.0,0.40332262]
[1756285097328,0.6567179,110800.0,110790.0,0.05032]
[1756285097522,0.6567179,110800.0,110790.0,0.40332262]
[1756285097723,0.2460261,110790.0,110780.0,0.14384668]
[1756285098026,0.2460261,110790.0,110780.0,0.17884088]
[1756285098027,1.4372261,110790.0,110780.0,0.17884088]
[1756285098328,1.4372261,110790.0,110780.0,0.4415793]
[1756285099127,1.4372261,110790.0,110780.0,0.4737893]
[1756285099314,1.4372261,110790.0,110780.0,0.08857668]
[1756285100023,1.4372261,110790.0,110780.0,0.17884098]
[1756285100224,1.4372261,110790.0,110780.0,0.24541098]
[1756285100622,1.4871261,110790.0,110780.0,0.24541098]
[1756285101028,1.4871261,110790.0,110780.0,0.1591043]
[1756285101730,1.4871261,110790.0,110780.0,0.2143743]
[1756285101930,1.6371261,110790.0,110780.0,0.2487343]
[1756285102526,0.8067261,110790.0,110780.0,0.60173692]
[1756285102726,1.6375661,110790.0,110780.0,0.60173692]
[1756285110335,1.6369261,110790.0,110780.0,0.60173692]
[1756285110536,0.8067261,110790.0,110780.0,0.60173692]
[1756285110733,0.68929,110790.0,110780.0,0.60173692]
[1756285110930,0.0499,110790.0,110780.0,0.96253692]
[1756285111332,0.0499,110790.0,110780.0,1.21253692]
[1756285112134,0.0499,110790.0,110780.0,2.04805692]
[1756285113441,0.0499,110790.0,110780.0,2.04905692]
[1756285114142,0.0499,110790.0,110780.0,2.05005692]
[1756285117740,0.12263787,110810.0,110800.0,0.0902479]
[1756285117944,0.17789787,110810.0,110800.0,0.97293249]
[1756285118133,0.17789787,110810.0,110800.0,0.61992987]
[1756285118538,0.09931787,110810.0,110800.0,1.33373249]
[1756285118738,0.03307,110810.0,110800.0,2.41841249]
[1756285119048,0.13106,110820.0,110810.0,0.2471798]
[1756285119248,0.13106,110820.0,110810.0,0.96098242]
[1756285121341,0.02332,110830.0,110820.0,0.1536816]
[1756285121547,0.07858,110830.0,110820.0,0.59271787]
[1756285121748,0.11247,110830.0,110820.0,0.59271787]
[1756285121942,0.11247,110830.0,110820.0,0.62038787]
[1756285122149,0.15443167,110830.0,110820.0,0.62038787]
[1756285122541,0.22639777,110830.0,110820.0,0.62038787]
[1756285123346,0.19250777,110830.0,110820.0,0.62038787]
[1756285123544,0.19250777,110830.0,110820.0,0.98118787]
[1756285123545,0.22639777,110830.0,110820.0,0.98118787]
[1756285124042,0.11865777,110830.0,110820.0,0.98118787]
[1756285124247,0.09533777,110830.0,110820.0,0.98118787]
[1756285124544,0.10774,110840.0,110830.0,0.2471635]
[1756285124746,0.13106,110840.0,110830.0,0.60016612]
[1756285125144,0.15824,110840.0,110830.0,0.60016612]
[1756285125342,0.09799,110840.0,110830.0,0.60016612]
[1756285125548,0.07858,110840.0,110830.0,0.60016612]
[1756285125944,0.13106,110840.0,110830.0,0.60016612]
[1756285126246,0.2212754,110840.0,110830.0,0.60016612]
[1756285126843,0.2484554,110840.0,110830.0,0.2471635]
[1756285127043,0.2484554,110840.0,110830.0,0.60016612]
[1756285127544,0.31655289,110840.0,110830.0,0.2471635]
[1756285127845,0.34373289,110840.0,110830.0,0.60016612]
[1756285128047,0.34373289,110840.0,110830.0,0.50994262]
[1756285128248,0.34373289,110840.0,110830.0,0.15694]
[1756285128547,0.34373289,110840.0,110830.0,0.50994262]
[1756285128846,0.34373289,110840.0,110830.0,0.15694]
[1756285129047,0.34373289,110840.0,110830.0,0.50994262]
[1756285129244,0.70453289,110840.0,110830.0,0.12329]
[1756285129448,0.70453289,110840.0,110830.0,0.15694]
[1756285130652,0.70453289,110840.0,110830.0,0.50994262]
[1756285131838,0.70453289,110840.0,110830.0,0.60016612]
[1756285132746,0.70453289,110840.0,110830.0,0.2471635]
[1756285132947,0.70453289,110840.0,110830.0,0.15694]
[1756285133150,0.70453289,110840.0,110830.0,0.50994262]
[1756285133451,0.70453289,110840.0,110830.0,0.15694]
[1756285133751,0.70453289,110840.0,110830.0,0.50994262]
[1756285134751,0.70453289,110840.0,110830.0,0.15694]
[1756285134950,0.70453289,110840.0,110830.0,0.50994262]
[1756285135140,0.67735289,110840.0,110830.0,0.50994262]
[1756285135341,0.67735289,110840.0,110830.0,0.60016612]
[1756285135648,0.70453289,110840.0,110830.0,0.2471635]
[1756285135851,0.70453289,110840.0,110830.0,0.60016612]
[1756285136251,0.70453289,110840.0,110830.0,0.2471635]
[1756285136554,0.70453289,110840.0,110830.0,0.60016612]
[1756285136746,0.85453289,110840.0,110830.0,0.60016612]
[1756285136944,0.85453289,110840.0,110830.0,0.2471635]
[1756285137146,0.85453289,110840.0,110830.0,0.60016612]
[1756285138952,0.85453289,110840.0,110830.0,0.50994262]
[1756285139255,0.85453289,110840.0,110830.0,0.15694]
[1756285139445,1.21453289,110840.0,110830.0,0.15694]
[1756285139850,1.21453289,110840.0,110830.0,0.12329]
[1756285140057,0.85453289,110840.0,110830.0,0.12329]
[1756285140459,0.85453289,110840.0,110830.0,0.15694]
[1756285140652,1.20453289,110840.0,110830.0,0.15694]
[1756285140859,0.82735289,110840.0,110830.0,0.50994262]
[1756285141354,0.82735289,110840.0,110830.0,0.60016612]
[1756285141563,0.70453289,110840.0,110830.0,0.50994262]
[1756285143152,0.70453289,110840.0,110830.0,0.15694]
[1756285143358,0.70453289,110840.0,110830.0,0.50994262]
[1756285144165,0.70453289,110840.0,110830.0,0.15694]
[1756285144364,0.31655289,110840.0,110830.0,0.15694]
[1756285144564,0.34373289,110840.0,110830.0,0.50994262]
[1756285144760,0.31655289,110840.0,110830.0,0.60016612]
[1756285144960,0.22633749,110840.0,110830.0,0.60016612]
[1756285145160,0.34373289,110840.0,110830.0,0.2471635]
[1756285145360,0.34373289,110840.0,110830.0,0.60016612]
[1756285145556,0.25351749,110840.0,110830.0,0.2471635]
[1756285145865,0.34373289,110840.0,110830.0,0.96096612]
[1756285146460,0.28348289,110840.0,110830.0,0.96096612]
[1756285146761,0.22715749,110840.0,110830.0,0.6079635]
[1756285146965,0.22715749,110840.0,110830.0,0.96096612]
[1756285148555,0.17467749,110840.0,110830.0,0.96096612]
[1756285148761,0.22795749,110840.0,110830.0,0.6079635]
[1756285148956,0.22795749,110840.0,110830.0,0.96096612]
[1756285149462,0.17467749,110840.0,110830.0,0.6079635]
[1756285149765,0.17467749,110840.0,110830.0,0.96096612]
[1756285150666,0.14078749,110840.0,110830.0,0.96096612]
[1756285150860,0.17467749,110840.0,110830.0,0.96096612]
[1756285151166,0.26489289,110840.0,110830.0,0.96096612]
[1756285151768,0.23100289,110840.0,110830.0,0.96096612]
[1756285152066,0.26489289,110840.0,110830.0,0.6079635]
[1756285152265,0.26489289,110840.0,110830.0,0.96096612]
[1756285153469,0.29901289,110840.0,110830.0,0.96096612]
[1756285153768,0.31817289,110840.0,110830.0,0.96096612]
[1756285154670,0.31817289,110840.0,110830.0,0.6079635]
[1756285154969,0.31817289,110840.0,110830.0,0.96096612]
[1756285156566,0.34526289,110840.0,110830.0,0.96096612]
[1756285156769,0.34526289,110840.0,110830.0,0.60016612]
[1756285157271,0.34526289,110840.0,110830.0,0.2471635]
[1756285157471,0.34526289,110840.0,110830.0,0.60016612]
[1756285158376,0.34526289,110840.0,110830.0,0.2471635]
[1756285158571,0.34526289,110840.0,110830.0,0.60016612]
[1756285159478,0.34526289,110840.0,110830.0,0.50994262]
[1756285159774,1.05906551,110840.0,110830.0,0.06889]
[1756285160171,1.05906551,110840.0,110830.0,0.15704]
[1756285160370,0.70606289,110840.0,110830.0,0.15704]
[1756285161170,1.63444289,110840.0,110830.0,0.15704]
[1756285161474,1.63444289,110840.0,110830.0,0.51004262]
[1756285164985,1.63340289,110840.0,110830.0,0.51004262]
[1756285165472,1.63340289,110840.0,110830.0,0.15704]
[1756285166078,1.63272289,110840.0,110830.0,0.15704]
[1756285166377,1.63272289,110840.0,110830.0,0.51004262]
[1756285166970,0.75596289,110840.0,110830.0,0.60026612]
[1756285167165,1.63564289,110840.0,110830.0,0.60026612]
[1756285167579,1.63564289,110840.0,110830.0,0.2472635]
[1756285167771,1.63564289,110840.0,110830.0,0.51004262]
[1756285169573,0.30494749,110840.0,110830.0,0.96106612]
[1756285169877,1.27352279,110840.0,110830.0,0.96106612]
[1756285170072,1.27352279,110840.0,110830.0,0.87084262]
[1756285170270,0.36807279,110840.0,110830.0,0.60026612]
[1756285170472,0.39516279,110840.0,110830.0,0.60026612]
[1756285171370,0.39516279,110840.0,110830.0,0.2472635]
[1756285171577,0.39516279,110840.0,110830.0,0.60026612]
[1756285173279,0.39516279,110840.0,110830.0,0.15704]
[1756285173578,0.39516279,110840.0,110830.0,0.51004262]
[1756285175083,0.39516279,110840.0,110830.0,0.60026612]
[1756285175684,0.39516279,110840.0,110830.0,0.2472635]
[1756285175882,0.39516279,110840.0,110830.0,0.60026612]
[1756285176285,0.39516279,110840.0,110830.0,0.2472635]
[1756285176485,0.39516279,110840.0,110830.0,0.60026612]
[1756285176687,0.36807279,110840.0,110830.0,0.60026612]
[1756285176887,0.39525279,110840.0,110830.0,0.60026612]
[1756285178084,0.39525279,110840.0,110830.0,0.2472635]
[1756285178384,0.39525279,110840.0,110830.0,0.60026612]
[1756285179087,0.39525279,110840.0,110830.0,0.2472635]
[1756285179294,0.39525279,110840.0,110830.0,0.60026612]
[1756285183290,0.65918035,110840.0,110830.0,0.51119106]
[1756285184093,0.27714749,110840.0,110830.0,0.2472635]
[1756285184390,0.27714749,110840.0,110830.0,0.51119106]
[1756285184580,0.27714749,110840.0,110830.0,0.77511862]
[1756285184991,0.27714749,110840.0,110830.0,0.51119106]
[1756285185192,0.36736279,110840.0,110830.0,0.51119106]
[1756285187095,0.28090279,110840.0,110830.0,0.51119106]
[1756285187298,0.31546279,110840.0,110830.0,0.51119106]
[1756285187497,0.34895279,110840.0,110830.0,0.51119106]
[1756285187794,0.25873749,110840.0,110830.0,0.51119106]
[1756285188501,0.27714749,110840.0,110830.0,0.51119106]
[1756285188806,0.27714749,110840.0,110830.0,0.77511862]
[1756285189100,0.14517749,110840.0,110830.0,1.38591862]
[1756285191398,0.14517749,110840.0,110830.0,1.20983571]
[1756285194106,0.14517749,110840.0,110830.0,2.44196792]
[1756285194306,0.14517749,110840.0,110830.0,2.09019571]
[1756285196205,0.35992279,110840.0,110830.0,0.51784]
[1756285196503,1.625895,110840.0,110830.0,0.15704]
[1756285196897,1.27412279,110840.0,110830.0,0.06889]
[1756285197102,2.566695,110840.0,110830.0,0.04995]
[1756285197303,2.236695,110840.0,110830.0,0.04995]
[1756285197502,2.606695,110840.0,110830.0,0.04995]
[1756285198410,2.236695,110840.0,110830.0,0.04995]
[1756285198610,1.88492279,110840.0,110830.0,0.04995]
[1756285198804,2.596695,110840.0,110830.0,0.04995]
[1756285199611,2.236695,110840.0,110830.0,0.04995]
[1756285199912,2.586695,110840.0,110830.0,0.04995]
[1756285200413,0.2493141,110830.0,110820.0,0.2120723]
[1756285200604,0.6101141,110830.0,110820.0,0.12184]
[1756285200800,0.6101141,110830.0,110820.0,0.15486]
[1756285201202,0.6101141,110830.0,110820.0,0.2120723]
[1756285201411,1.37111,110830.0,110820.0,0.59686451]
[1756285202300,1.4885141,110830.0,110820.0,0.59686451]
[1756285203809,1.4885141,110830.0,110820.0,0.2450923]
[1756285204013,1.4885141,110830.0,110820.0,0.59686451]
[1756285205111,1.4885141,110830.0,110820.0,0.2450923]
[1756285205313,1.4885141,110830.0,110820.0,0.59686451]
[1756285206116,2.40028631,110830.0,110820.0,0.02948]
[1756285206411,0.2436923,110820.0,110810.0,0.0383]
[1756285206613,0.2141404,110810.0,110800.0,0.12075]
[1756285206917,1.4923504,110810.0,110800.0,0.02797]
[1756285207114,1.84412261,110810.0,110800.0,0.02797]
[1756285207616,2.05412261,110810.0,110800.0,0.02797]
[1756285208117,0.2444777,110800.0,110790.0,0.1393658]
[1756285208312,0.6052777,110800.0,110790.0,0.04911]
[1756285208514,0.95704991,110800.0,110790.0,0.04911]
[1756285209414,0.6052777,110800.0,110790.0,0.04911]
[1756285209613,0.6052777,110800.0,110790.0,0.1552]
[1756285210212,0.6052777,110800.0,110790.0,0.50697221]
[1756285210411,1.4813977,110800.0,110790.0,0.50697221]
[1756285210714,0.6052777,110800.0,110790.0,0.59722811]
[1756285210919,1.30858649,110800.0,110790.0,0.59722811]
[1756285211123,1.37158649,110800.0,110790.0,0.2454559]
[1756285211320,1.37158649,110800.0,110790.0,0.59722811]
[1756285211720,1.46183419,110800.0,110790.0,0.59722811]
[1756285211921,1.46183419,110800.0,110790.0,0.2454559]
[1756285212113,1.46183419,110800.0,110790.0,0.1552]
[1756285212414,1.46183419,110800.0,110790.0,0.50697221]
[1756285212714,0.58631419,110800.0,110790.0,0.50697221]
[1756285213018,1.46139419,110800.0,110790.0,0.50697221]
[1756285213419,1.46139419,110800.0,110790.0,0.1552]
[1756285213810,1.46139419,110800.0,110790.0,0.50697221]
[1756285219121,1.46139419,110800.0,110790.0,0.44166221]
[1756285219716,1.46139419,110800.0,110790.0,0.08989]
[1756285219918,1.46139419,110800.0,110790.0,0.44166221]
[1756285220124,1.46139419,110800.0,110790.0,0.50697221]
[1756285220424,1.46139419,110800.0,110790.0,0.1552]
[1756285220722,1.46139419,110800.0,110790.0,0.50697221]
[1756285221520,1.46139419,110800.0,110790.0,0.59722811]
[1756285221924,1.46139419,110800.0,110790.0,0.2454559]
[1756285222129,1.46139419,110800.0,110790.0,0.59722811]
[1756285223125,0.58631419,110800.0,110790.0,0.59722811]
[1756285223325,1.45803419,110800.0,110790.0,0.59722811]
[1756285223525,1.45803419,110800.0,110790.0,0.2454559]
[1756285223725,1.45803419,110800.0,110790.0,0.59722811]
[1756285224325,1.45803419,110800.0,110790.0,0.2454559]
[1756285224525,1.45803419,110800.0,110790.0,0.59722811]
[1756285226522,1.60783419,110800.0,110790.0,0.59722811]
[1756285226723,1.45803419,110800.0,110790.0,0.59722811]
[1756285228125,1.45803419,110800.0,110790.0,0.2454559]
[1756285228332,1.45803419,110800.0,110790.0,0.59722811]
[1756285228930,1.45459419,110800.0,110790.0,0.59722811]
[1756285230024,1.00354649,110800.0,110790.0,0.59722811]
[1756285230231,0.97491649,110800.0,110790.0,0.95802811]
[1756285230725,1.06516429,110800.0,110790.0,0.95802811]
[1756285231232,1.08149429,110800.0,110790.0,0.95802811]
[1756285233139,0.99304,110800.0,110790.0,0.95802811]
[1756285233328,0.99264,110800.0,110790.0,0.95802811]
[1756285233524,0.12628,110800.0,110790.0,0.6062559]
[1756285233730,0.99268,110800.0,110790.0,0.95802811]
[1756285234136,1.0829277,110800.0,110790.0,0.95802811]
[1756285234333,0.99268,110800.0,110790.0,0.95802811]
[1756285235639,1.0829277,110800.0,110790.0,0.95802811]
[1756285236334,0.0764,110810.0,110800.0,0.2456377]
[1756285236639,1.0855233,110820.0,110810.0,0.15539]
[1756285236830,1.0855233,110820.0,110810.0,0.50716221]
[1756285237337,1.0855233,110820.0,110810.0,0.59740181]
[1756285237537,0.2201633,110820.0,110810.0,0.59740181]
[1756285237843,1.0856433,110820.0,110810.0,0.59740181]
[1756285238139,0.2201633,110820.0,110810.0,0.59740181]
[1756285238341,1.0855233,110820.0,110810.0,0.59740181]
[1756285239944,1.1018533,110820.0,110810.0,0.2456296]
[1756285240143,1.0855233,110820.0,110810.0,0.59740181]
[1756285241145,0.98317634,110820.0,110810.0,0.59740181]
[1756285241844,0.98317634,110820.0,110810.0,0.2456296]
[1756285242033,0.98317634,110820.0,110810.0,0.59740181]
[1756285242637,0.89294244,110820.0,110810.0,0.59740181]
[1756285242837,0.98317394,110820.0,110810.0,0.59740181]
[1756285243741,0.86388,110820.0,110810.0,1.20820181]
[1756285243939,1.34197381,110820.0,110810.0,0.07305]
[1756285244140,1.35197381,110820.0,110810.0,0.2274797]
[1756285244338,1.71277381,110820.0,110810.0,0.2456297]
[1756285245245,1.3610016,110820.0,110810.0,0.2456297]
[1756285245953,1.3610016,110820.0,110810.0,0.59740191]
[1756285246343,1.3610016,110820.0,110810.0,0.2456297]
[1756285248850,1.3610016,110820.0,110810.0,0.59740191]
[1756285250048,1.3610016,110820.0,110810.0,0.2456297]
[1756285252052,0.4971216,110820.0,110810.0,0.2456297]
[1756285252346,1.3593216,110820.0,110810.0,0.59740191]
[1756285253252,1.17148359,110820.0,110810.0,0.59740191]
[1756285253458,1.26171519,110820.0,110810.0,0.59740191]
[1756285253749,1.27171519,110820.0,110810.0,0.59740191]
[1756285253951,0.9624316,110820.0,110810.0,0.59740191]
[1756285255250,0.9624316,110820.0,110810.0,0.2456297]
[1756285255454,0.9624316,110820.0,110810.0,0.59740191]
[1756285256357,0.1002316,110820.0,110810.0,0.6064297]
[1756285256647,0.01,110820.0,110810.0,0.96820191]
[1756285256846,0.9661083,110830.0,110820.0,0.2456216]
[1756285257045,0.9661083,110830.0,110820.0,0.59739381]
[1756285257552,0.9661083,110830.0,110820.0,0.60739381]
[1756285258053,0.9661083,110830.0,110820.0,0.2456216]
[1756285258251,0.9661083,110830.0,110820.0,0.60739381]
[1756285259149,0.09527749,110840.0,110830.0,0.0902233]
[1756285259350,1.0960552,110840.0,110830.0,0.59738551]
[1756285259751,1.4568552,110840.0,110830.0,0.59738551]
[1756285260945,1.4568552,110840.0,110830.0,0.2456133]
[1756285261151,1.89994141,110840.0,110830.0,0.02952]
[1756285261351,1.5481692,110840.0,110830.0,0.0499]
[1756285261754,1.89994141,110840.0,110830.0,0.0499]
[1756285262253,1.5481692,110840.0,110830.0,0.40167221]
[1756285262447,1.5481692,110840.0,110830.0,0.42482221]
[1756285262647,1.5481692,110840.0,110830.0,0.50716221]
[1756285262856,1.1852892,110840.0,110830.0,0.60738551]
[1756285264556,1.1852892,110840.0,110830.0,0.2456133]
[1756285264755,1.1852892,110840.0,110830.0,0.60738551]
[1756285265054,1.1852892,110840.0,110830.0,0.59738551]
[1756285265254,1.1852892,110840.0,110830.0,0.60738551]
[1756285267156,0.3115292,110840.0,110830.0,0.85738551]
[1756285267354,1.1830492,110840.0,110830.0,0.85738551]
[1756285267543,1.0530492,110840.0,110830.0,0.85738551]
[1756285268461,1.0530492,110840.0,110830.0,0.84738551]
[1756285268656,1.0530492,110840.0,110830.0,0.85738551]
[1756285273559,1.0513291,110840.0,110830.0,0.96818551]
[1756285273758,0.9600151,110840.0,110830.0,0.96818551]
[1756285274152,0.8698,110840.0,110830.0,0.96818551]
[1756285274351,0.9600151,110840.0,110830.0,0.96818551]
[1756285274560,0.0902151,110840.0,110830.0,0.95818551]
[1756285274763,0.0902151,110840.0,110830.0,0.96818551]
[1756285275358,0.16335105,110840.0,110830.0,0.6164133]
[1756285275652,0.16335105,110840.0,110830.0,0.96818551]
[1756285275861,0.17996195,110840.0,110830.0,0.96818551]
[1756285276549,0.08974685,110840.0,110830.0,0.96818551]
[1756285276857,0.9586039,110860.0,110850.0,0.216337]
[1756285277158,1.0886039,110860.0,110850.0,0.61083921]
[1756285277362,1.2384039,110860.0,110850.0,0.61083921]
[1756285277560,1.05988108,110860.0,110850.0,0.61083921]
[1756285277861,0.29605175,110860.0,110850.0,0.61083921]
[1756285278160,1.25465785,110860.0,110850.0,0.61083921]
[1756285279966,1.32755692,110860.0,110850.0,0.61083921]
[1756285280260,1.04774972,110860.0,110850.0,0.61083921]
[1756285280656,1.39952193,110860.0,110850.0,0.0912]
[1756285280863,2.52012193,110860.0,110850.0,0.02816]
[1756285281067,2.16012193,110860.0,110850.0,0.02816]
[1756285281255,2.16012193,110860.0,110830.0,0.41938221]
[1756285281256,0.1115051,110840.0,110830.0,0.41938221]
[1756285281456,1.0017451,110840.0,110830.0,0.45431221]
[1756285281656,1.0017451,110840.0,110830.0,0.48247221]
[1756285282966,1.0017451,110840.0,110830.0,0.49247221]
[1756285283358,1.0017451,110840.0,110830.0,0.94349551]
[1756285285961,1.0017451,110840.0,110830.0,0.5567933]
[1756285286159,1.0017451,110840.0,110830.0,0.93892551]
[1756285286462,1.0017451,110840.0,110830.0,0.97165551]
[1756285287669,1.0017451,110840.0,110830.0,0.6198833]
[1756285287860,1.0017451,110840.0,110830.0,0.97165551]